[Event "CCT Chessable Masters D-II 2024"]
[Site "Online"]
[Date "2024.02.02"]
[Round "1"]
[White "Nakamura, Hikaru"]
[Black "Yu, Yangyi"]
[Result "0-1"]
[ECO "E32"]
[WhiteElo "2788"]
[BlackElo "2720"]
[Annotator "TA"]
[PlyCount "89"]
[EventDate "2024.01.12"]
[EventType "k.o."]
[EventCountry "NET"]
[SourceTitle "playchess.com"]
[Source "ChessBase"]
[SourceQuality "1"]
[TimeControl "600+2"]

{[%evp 20,89,0,6,19,8,12,10,21,0,0,-27,0,0,0,0,-6,-8,-4,-6,-6,-6,-6,-6,-8,-20,-2,-16,-17,-17,-26,-94,-81,-102,-56,-279,-264,-260,-18,-345,-345,-354,-313,-312,-321,-333,-152,-323,-333,-512,-235,-235,-228,-240,-240,-263,-276,-274,-252,-254,-270,-366,-366,-376,-371,-452,-465,-475,-452,-672,-664,-1073]} 1. d4 {[%emt 0:00:07]} Nf6 {[%emt 0:00:04]} 2. c4 {[%emt 0:00:02]} e6 {[%emt 0:00:01]} 3. Nc3 {[%emt 0:00:01]} Bb4 {[%emt 0:00:02]} 4. Qc2 {[%emt 0:00:01]} d6 {[%emt 0:00:13]} 5. a3 {[%emt 0:00:17]} Bxc3+ {[%emt 0:00:02]} 6. Qxc3 {[%emt 0:00:01]} O-O {[%emt 0:00:09]} 7. Bg5 {[%emt 0:00:14]} h6 {[%emt 0:00:09]} 8. Bh4 {[%emt 0:00:01] E32: Nimzo-Indian: Classical (4 Qc2): 4...0-0.} Nc6 {[%emt 0:01:01]} 9. Nf3 {[%emt 0:00:06]} g5 {[%emt 0:00:05]} 10. Bg3 {[%emt 0:00:01]} Ne4 {[%emt 0:00:01]} 11. Qc2 {[%emt 0:00:20]} f5 {[%emt 0:00:02]} 12. e3 {[%emt 0:00:01]} Qf6 {[%emt 0:00:19]} 13. Bd3 {[%emt 0:00:27]} Nxg3 $1 {[%emt 0:00:01]} 14. fxg3 $146 {[%emt 0:00:06]} (14. hxg3 $142 e5 15. d5) ({Predecessor:} 14. hxg3 e5 15. d5 Ne7 16. Be2 f4 17. gxf4 exf4 18. e4 Bg4 19. O-O-O Bxf3 20. Bxf3 {1-0 Akobian,V (2614)-Henderson de la Fuente,L (2491) Titled Tuesday intern op 14th April blitz 2020 (8)}) 14... e5 $11 {[%emt 0:00:11]} 15. d5 {[%emt 0:00:01]} e4 {[%emt 0:01:05]} 16. dxc6 {[%emt 0:00:00]} exd3 {[%emt 0:00:01]} 17. Qxd3 {[%emt 0:00:06]} bxc6 {[%emt 0:00:01]} 18. O-O {[%emt 0:00:01]} c5 {[%emt 0:00:03]} 19. b4 {[%emt 0:00:12]} Bb7 {[%emt 0:00:13]} 20. Nd2 {[%emt 0:00:10]} Rae8 {[%emt 0:00:35]} 21. Rab1 {[%emt 0:02:13]} Bc6 {[%emt 0:00:21]} 22. b5 {[%emt 0:00:14]} Bb7 {[%emt 0:00:16]} 23. a4 {[%emt 0:00:00]} Re5 {[%emt 0:00:43]} 24. a5 {[%emt 0:00:43]} Qe6 {[%emt 0:00:01]} 25. Rb3 {[%emt 0:00:12]} (25. Rbe1 $11 {keeps the balance.}) 25... Re8 $1 $17 {[%emt 0:00:15]} 26. Re1 {[%emt 0:00:16]} d5 {[%emt 0:00:37]} (26... f4 $17 {[%cal Re5e3]} 27. gxf4 gxf4) 27. b6 $2 {[%emt 0:01:15]} (27. Rf1 $15) 27... cxb6 $19 {[%emt 0:00:14]} 28. axb6 {[%emt 0:00:00]} a6 $2 {[%emt 0:00:46]} ({Black should try} 28... dxc4 $19 29. Nxc4 Ba6) 29. Rc1 $2 {[%emt 0:00:10][%mdl 8192] [#]} (29. Rf1 $11) 29... d4 $1 $19 {[%emt 0:00:17]} 30. Qe2 {[%emt 0:01:25]} (30. exd4 $2 Re1+ 31. Rxe1 Qxe1+ 32. Qf1 (32. Nf1 $2 Re2 $19) 32... Qxd2 $19) 30... Rxe3 {[%emt 0:00:40]} 31. Rxe3 {[%emt 0:00:03]} dxe3 {[%emt 0:00:01]} (31... Qxe3+ 32. Qxe3 Rxe3 (32... dxe3 33. Nb3 $11) 33. Kf2 $19) 32. Nf1 {[%emt 0:00:10]} Qxb6 {[%emt 0:00:25]} (32... Re7 $19 {[%cal Of5f4] Strongly threatening ...f4!} 33. h4 f4 (33... Qxb6 34. hxg5 hxg5 35. Nxe3 $17) 34. hxg5 hxg5 (34... Qxb6 35. gxf4 hxg5 36. f5 $15)) 33. h4 $2 {[%emt 0:00:01]} (33. Nxe3 $17 Qb3 34. Kf2) 33... Qc6 $19 {[%emt 0:00:17]} 34. Rc3 {[%emt 0:00:16] [#]} (34. hxg5 $142 hxg5 35. Rd1) 34... Qxg2+ {[%emt 0:00:51]} (34... f4 $142 $1 {[%cal Oc6g2][%mdl 512] Hoping for ...Qxg2+!} 35. Rc1 (35. hxg5 Qxg2+) 35... Qf6) 35. Qxg2 $19 {[%emt 0:00:00]} Bxg2 {[%emt 0:00:00]} 36. Nxe3 {[%emt 0:00:00]} Be4 {[%emt 0:00:01]} 37. hxg5 {[%emt 0:00:00]} hxg5 {[%emt 0:00:00]} 38. Ra3 {[%emt 0:00:02]} Re6 {[%emt 0:00:05]} 39. Ra5 {[%emt 0:00:01]} Rc6 {[%emt 0:00:01]} 40. Nd1 {[%emt 0:00:04]} Kf7 {[%emt 0:00:22]} 41. Nc3 {[%emt 0:00:00]} Ke6 {[%emt 0:00:09]} 42. Na4 {[%emt 0:00:06]} Kd6 {[%emt 0:00:02]} 43. Kf2 {[%emt 0:00:00]} Bc2 {[%emt 0:00:12]} 44. Nb2 {[%emt 0:00:23]} (44. Ke3 $142) 44... Rb6 $19 {[%emt 0:00:07]} 45. Ra2 {[%emt 0:00:01]} 0-1

[Event "CCT Chessable Masters D-II 2024"]
[Site "Online"]
[Date "2024.02.02"]
[Round "1"]
[White "Nakamura, Hikaru"]
[Black "Yu, Yangyi"]
[Result "1-0"]
[ECO "D00"]
[WhiteElo "2788"]
[BlackElo "2720"]
[Annotator "RC"]
[PlyCount "119"]
[EventDate "2024.01.12"]
[EventType "k.o."]
[EventCountry "NET"]
[SourceTitle "playchess.com"]
[Source "ChessBase"]
[SourceQuality "1"]
[TimeControl "600+2"]

1. d4 {[%emt 0:00:08]} Nf6 {[%emt 0:00:04]} 2. Bg5 {[%emt 0:00:12]} d5 {[%emt 0:00:04]} 3. e3 {[%emt 0:00:04]} c6 {[%emt 0:00:06]} 4. Bd3 {[%emt 0:00:20]} Bg4 {[%emt 0:00:05]} 5. f3 {[%emt 0:00:20]} Bh5 {[%emt 0:00:13]} 6. Nd2 {[%emt 0:00:32]} Nbd7 {[%emt 0:00:08]} 7. c4 {[%emt 0:00:04]} Bg6 {[%emt 0:00:10]} 8. Qc2 {[%emt 0:00:38]} e5 {[%emt 0:00:25]} 9. cxd5 {[%emt 0:00:32]} cxd5 {[%emt 0:00:05]} 10. dxe5 {[%emt 0:00:53]} Bxd3 {[%emt 0:00:43]} 11. Qxd3 {[%emt 0:00:03]} Nxe5 {[%emt 0:00:01]} 12. Qb3 {[%emt 0:00:11]} Be7 {[%emt 0:00:29]} 13. Ne2 {[%emt 0:00:08]} O-O {[%emt 0:00:15]} 14. O-O {[%emt 0:00:01]} h6 {[%emt 0:00:08]} 15. Bh4 {[%emt 0:00:13]} Ng6 {[%emt 0:00:31]} 16. Bf2 {[%emt 0:00:11]} Qa5 {[%emt 0:00:07]} 17. Rad1 {[%emt 0:00:04]} Bc5 {[%emt 0:00:28]} 18. Qc2 {[%emt 0:00:31]} Qb6 {[%emt 0:00:58]} 19. Qc3 {[%emt 0:00:39]} Rfe8 {[%emt 0:00:21]} 20. Nd4 {[%emt 0:00:02]} Rac8 {[%emt 0:00:08]} 21. N2b3 {[%emt 0:00:12]} Bb4 {[%emt 0:00:08]} 22. Qd3 {[%emt 0:00:07]} Ne5 {[%emt 0:00:00]} 23. Qe2 {[%emt 0:00:08]} Nc4 {[%emt 0:00:01]} 24. Rc1 {[%emt 0:00:07]} a5 {[%emt 0:00:04]} 25. a4 {[%emt 0:00:48]} Nh5 {[%emt 0:00:55]} 26. g3 {[%emt 0:00:05]} Qg6 {[%emt 0:00:07]} 27. Kh1 {[%emt 0:00:21]} Nf6 {[%emt 0:00:29]} 28. Rfd1 {[%emt 0:00:16]} Nd7 {[%emt 0:00:07]} 29. Ra1 {[%emt 0:00:26]} Qg5 {[%emt 0:00:11]} 30. Rd3 {[%emt 0:00:15]} Qf6 {[%emt 0:00:09]} 31. Rdd1 {[%emt 0:00:06]} Nc5 {[%emt 0:00:15]} 32. Nc1 {[%emt 0:00:16]} Qg5 {[%emt 0:00:19]} 33. h4 {[%emt 0:00:07]} Qe5 {[%emt 0:00:17]} 34. Nd3 {[%emt 0:00:07]} Nxd3 {[%emt 0:00:16]} 35. Rxd3 {[%emt 0:00:01]} Bc5 {[%emt 0:00:14]} 36. Re1 {[%emt 0:00:14]} b6 {[%emt 0:00:32]} 37. b3 {[%emt 0:00:07]} Nd6 {[%emt 0:00:08]} 38. Kg2 {[%emt 0:00:06]} Bxd4 {[%emt 0:00:14]} 39. Rxd4 {[%emt 0:00:00]} Nf5 {[%emt 0:00:09]} 40. Rd3 {[%emt 0:00:02]} Rc6 {[%emt 0:00:09]} 41. Qd2 {[%emt 0:00:13]} Qe6 {[%emt 0:00:45]} 42. e4 {[%emt 0:00:08]} Nxh4+ {[%emt 0:00:24]} 43. gxh4 {[%emt 0:00:02]} Qg6+ {[%emt 0:00:01]} 44. Kh2 {[%emt 0:00:32]} dxe4 {[%emt 0:00:00]} 45. fxe4 {[%emt 0:00:01]} Rxe4 {[%emt 0:00:00]} 46. Rxe4 {[%emt 0:00:14]} Qxe4 {[%emt 0:00:02]} 47. Rd8+ {[%emt 0:00:00]} Kh7 {[%emt 0:00:00]} 48. Qd3 {[%emt 0:00:01]} Qxd3 {[%emt 0:00:06]} 49. Rxd3 {[%emt 0:00:00]} g5 {[%emt 0:00:02]} 50. Rd5 {[%emt 0:00:04]} Kg6 {[%emt 0:00:06]} 51. Rb5 {[%emt 0:00:01]} Rc2 {[%emt 0:00:01]} 52. Kg2 {[%emt 0:00:03]} Kh5 {[%emt 0:00:01]} 53. hxg5 {[%emt 0:00:08]} hxg5 {[%emt 0:00:00]} 54. Kf3 {[%emt 0:00:00]} f6 {[%emt 0:00:05]} 55. Bd4 {[%emt 0:00:02]} Kg6 {[%emt 0:00:04]} 56. Rxb6 {[%emt 0:00:02]} Rd2 {[%emt 0:00:02]} 57. Bxf6 {[%emt 0:00:08]} Kf5 {[%emt 0:00:01]} 58. Ke3 {[%emt 0:00:01]} Ra2 {[%emt 0:00:01]} 59. Bd8 {[%emt 0:00:04]} Rh2 {[%emt 0:00:01]} 60. Rb5+ {[%emt 0:00:00]} 1-0

[Event "CCT Chessable Masters D-II 2024"]
[Site "Online"]
[Date "2024.02.02"]
[Round "1"]
[White "Sibelephant"]
[Black "Micki-taryan"]
[Result "1-0"]
[ECO "C67"]
[WhiteElo "2788"]
[BlackElo "2625"]
[Annotator "TA"]
[PlyCount "133"]
[EventDate "2024.01.12"]
[EventType "k.o."]
[EventCountry "NET"]
[SourceTitle "playchess.com"]
[Source "ChessBase"]
[SourceQuality "1"]
[TimeControl "600+2"]

{[%evp 54,133,9,0,11,0,20,0,0,0,0,0,14,0,29,0,0,0,0,6,435,433,409,372,547,454,391,166,193,116,109,80,80,80,83,0,0,0,0,0,0,0,0,0,493,395,543,518,501,470,400,0,0,0,0,0,0,0,0,0,0,0,0,0,0,0,0,0,0,0,0,0,8,8,8,0,1625,1405,29967,29967,29988,29989]} 1. e4 {[%emt 0:00:11]} e5 {[%emt 0:00:08]} 2. Nf3 {[%emt 0:00:01]} Nc6 {[%emt 0:00:01]} 3. Bb5 {[%emt 0:00:03]} Nf6 {[%emt 0:00:02]} 4. O-O {[%emt 0:00:02]} Nxe4 {[%emt 0:00:01]} 5. Re1 {[%emt 0:00:03]} Nd6 {[%emt 0:00:01]} 6. Nxe5 {[%emt 0:00:01]} Be7 {[%emt 0:00:00]} 7. Bf1 {[%emt 0:00:02]} Nxe5 {[%emt 0:00:02]} 8. Rxe5 {[%emt 0:00:02]} O-O {[%emt 0:00:00]} 9. Nc3 {[%emt 0:00:04] C67: Ruy Lopez: Berlin Defence: 4 0-0 Nxe4.} Ne8 {[%emt 0:00:02]} 10. Nd5 {[%emt 0:00:05]} Bd6 {[%emt 0:00:01]} 11. Re2 {[%emt 0:00:25]} c6 {[%emt 0:00:19]} 12. Ne3 {[%emt 0:00:02]} Bc7 {[%emt 0:00:07]} 13. Nf5 {[%emt 0:00:04]} d5 {[%emt 0:00:25]} 14. Ne7+ {[%emt 0:00:02]} Kh8 {[%emt 0:00:00]} 15. Nxc8 {[%emt 0:00:01]} Rxc8 {[%emt 0:00:03]} 16. d4 {[%emt 0:00:37]} Qd7 {[%emt 0:00:56]} 17. Qd3 {[%emt 0:00:47]} Nf6 {[%emt 0:00:24]} 18. Bd2 {[%emt 0:00:29]} Rfe8 $146 {[%emt 0:00:12]} ({Predecessor:} 18... Ne4 19. Bb4 Bd6 20. Be1 f5 21. f3 Qf7 22. g3 c5 23. c3 c4 24. Qc2 Ng5 {1-0 Delgado Ramirez,N (2588)-Martirosyan,H (2636) Sharjah Masters 4th 2021 (6)}) 19. Rae1 {[%emt 0:00:05]} Rxe2 {[%emt 0:00:16]} 20. Rxe2 {[%emt 0:00:01]} Re8 {[%emt 0:00:01]} 21. g3 {[%emt 0:00:57]} Rxe2 {[%emt 0:00:20]} 22. Bxe2 {[%emt 0:00:04]} Kg8 {[%emt 0:00:08]} 23. Bf3 {[%emt 0:01:12]} Bd6 {[%emt 0:00:26]} 24. b3 {[%emt 0:00:22]} Qe6 {[%emt 0:00:19]} 25. c4 {[%emt 0:00:16]} a6 {[%emt 0:00:11]} 26. a4 {[%emt 0:00:38]} g6 {[%emt 0:00:47]} 27. Kg2 {[%emt 0:00:42]} h5 {[%emt 0:00:03]} 28. Qe2 {[%emt 0:00:31]} Qf5 {[%emt 0:00:50]} 29. h4 {[%emt 0:00:50]} Ne4 {[%emt 0:00:37]} 30. cxd5 {[%emt 0:00:28]} cxd5 {[%emt 0:00:26]} 31. Be3 {[%emt 0:00:02]} Bf8 {[%emt 0:00:28]} 32. Qe1 {[%emt 0:00:08]} Qe6 {[%emt 0:00:44]} 33. Qa5 {[%emt 0:00:09]} Qd7 {[%emt 0:00:09]} (33... Bd6 $5) 34. Bxe4 {[%emt 0:00:45]} dxe4 {[%emt 0:00:00]} 35. Qe5 {[%emt 0:00:01]} Qe6 {[%emt 0:00:34]} 36. Qb8 {[%emt 0:00:06]} b6 $2 {[%emt 0:00:37][%mdl 8192]} (36... Qxb3 $11 {and Black stays safe.} 37. Bh6 Qf3+ 38. Kg1 Qa3) 37. Bh6 $18 {[%emt 0:00:12]} Qd6 {[%emt 0:00:01]} 38. Qa8 {[%emt 0:00:17]} f5 {[%emt 0:00:52]} (38... Qa3 $142 39. Qc8 Qe7) 39. Bxf8 {[%emt 0:00:01]} Qxf8 {[%emt 0:00:00]} 40. Qc6 {[%emt 0:00:03]} (40. Qxa6 $142 Kf7 41. Qxb6) 40... Qf7 {[%emt 0:00:12]} 41. Qxb6 {[%emt 0:00:02]} (41. d5 $18 f4 42. gxf4 (42. Qxb6 fxg3 43. Qb8+ Kh7 $11)) 41... Kh7 $16 {[%emt 0:00:07]} 42. Qxa6 {[%emt 0:00:21]} Qxb3 {[%emt 0:00:02]} 43. Qa7+ $1 {[%emt 0:00:03]} Kh6 {[%emt 0:00:03]} 44. Qa8 {[%emt 0:00:00]} (44. Qc5 $16 {Threatens to win with d5.} Qxa4 45. d5) 44... Kh7 $11 {[%emt 0:00:04]} 45. Qe8 {[%emt 0:00:03]} (45. a5 $5 Qf3+ $8 46. Kg1 Qd1+ 47. Kh2 $11) 45... Qf3+ {[%emt 0:00:04]} 46. Kg1 {[%emt 0:00:00]} Qd1+ {[%emt 0:00:01]} 47. Kh2 {[%emt 0:00:01]} Qe2 {[%emt 0:00:14]} 48. Qe7+ {[%emt 0:00:06]} (48. Kg2 $5 Qf3+ $8 49. Kg1 Qd1+ 50. Kh2 Qxd4 51. Kg2 $11) 48... Kg8 $2 {[%emt 0:00:08][%mdl 8192]} (48... Kh6 $11) 49. Qd8+ $1 $18 {[%emt 0:00:03]} Kg7 {[%emt 0:00:02]} 50. Qc7+ {[%emt 0:00:01]} Kg8 {[%emt 0:00:00] [#]} 51. Qb8+ $1 {[%emt 0:00:03]} Kg7 {[%emt 0:00:03] [#]} 52. Qf4 $2 {[%emt 0:00:02]} ({White has to play} 52. Qa7+ $1 $18 Kh6 53. d5) 52... Qa2 $1 $11 {[%emt 0:00:02]} 53. Qe5+ {[%emt 0:00:06]} Kh7 {[%emt 0:00:03]} 54. Kg2 {[%emt 0:00:02]} Qxa4 {[%emt 0:00:01]} 55. Qe7+ {[%emt 0:00:01]} Kh6 {[%emt 0:00:03]} 56. Qf8+ {[%emt 0:00:01]} Kh7 {[%emt 0:00:01]} 57. Qf7+ {[%emt 0:00:01]} Kh6 {[%emt 0:00:02]} 58. Qf6 {[%emt 0:00:01]} Kh7 {[%emt 0:00:02]} 59. d5 {[%emt 0:00:01]} Qb3 {[%emt 0:00:01]} 60. Qf7+ {[%emt 0:00:04]} Kh6 {[%emt 0:00:01]} 61. Qg8 {[%emt 0:00:06]} Qf3+ {[%emt 0:00:00]} 62. Kg1 {[%emt 0:00:01]} Qd1+ {[%emt 0:00:01]} 63. Kh2 {[%emt 0:00:01]} Qd4 {[%emt 0:00:00]} 64. Kg2 {[%emt 0:00:04]} Qg7 $2 {[%emt 0:00:10][%mdl 8192]} (64... Qf6 $11 65. Qb8 Kg7) 65. Qe8 $18 {[%emt 0:00:03]} Qd4 {[%emt 0:00:03]} 66. d6 $1 {[%emt 0:00:01]} e3 {[%emt 0:00:03]} 67. Qxe3+ {[%emt 0:00:01]} 1-0

[Event "CCT Chessable Masters D-II 2024"]
[Site "Online"]
[Date "2024.02.02"]
[Round "1"]
[White "Keymer, Vincent"]
[Black "Svidler, Peter"]
[Result "1-0"]
[ECO "A85"]
[WhiteElo "2743"]
[BlackElo "2689"]
[Annotator "TA"]
[PlyCount "39"]
[EventDate "2024.01.12"]
[EventType "k.o."]
[EventCountry "NET"]
[SourceTitle "playchess.com"]
[Source "ChessBase"]
[SourceQuality "1"]
[TimeControl "600+2"]

{[%evp 9,39,25,28,16,32,37,36,28,40,33,40,26,51,50,52,64,70,72,67,69,76,70,122,158,156,155,159,154,301,302,425,337]} 1. Nf3 {[%emt 0:00:03]} f5 {[%emt 0:00:09]} 2. d4 {[%emt 0:00:10]} Nf6 {[%emt 0:00:07]} 3. c4 {[%emt 0:00:06]} d6 {[%emt 0:00:03]} 4. Nc3 {[%emt 0:00:06]} g6 {[%emt 0:00:02]} 5. e3 {[%emt 0:00:09]} Bg7 {[%emt 0:00:02]} 6. b4 {[%emt 0:00:02]} O-O {[%emt 0:00:04][%cal Oe7e5]} 7. Bb2 {[%emt 0:00:15]} Nbd7 {[%emt 0:02:07]} 8. Qb3 {[%emt 0:01:25] White is slightly better.} e6 {[%emt 0:00:52]} 9. Be2 {[%emt 0:00:32]} Qe7 {[%emt 0:00:18]} 10. O-O {[%emt 0:00:04]} b6 {[%emt 0:00:24]} 11. d5 {[%emt 0:01:22] dxe6 is the strong threat.} e5 {[%emt 0:00:14]} 12. Ng5 {[%emt 0:00:26]} Re8 {[%emt 0:00:36]} 13. Ne6 {[%emt 0:00:15][%cal Oc3b5] [#] aiming for Nb5! White has more active pieces.} Nf8 {[%emt 0:00:01][%cal Bd7f8,Bf8g6,Bg6e5][%mdl 32]} 14. Nxg7 {[%emt 0:00:07]} Kxg7 {[%emt 0:00:06]} 15. Rae1 {[%emt 0:00:11]} g5 {[%emt 0:00:18]} (15... N8d7 $14) 16. f4 $16 {[%emt 0:00:04]} Ng6 {[%emt 0:00:04]} 17. fxe5 {[%emt 0:02:06]} Nxe5 {[%emt 0:00:07] [#]} 18. Nb5 $1 {[%emt 0:00:01]} Kh6 {[%emt 0:01:55]} (18... a5 $16) 19. Nd4 $18 {[%emt 0:00:27] Hoping for Rxf5.} Rf8 {[%emt 0:00:04]} (19... a5 {was called for.} 20. Rxf5 (20. Nxf5+ Bxf5 21. Rxf5 Rf8 $18) 20... Bd7) 20. Rxf5 {[%emt 0:00:14] Weighted Error Value: White=0.02 (flawless) /Black=0.33.  Mistake:       	---       	Black=3      OK:         	White=8     	Black=4      Best:        	White=3     	---} ({Much less strong is} 20. Nxf5+ Bxf5 21. Rxf5 Ng8 $18) 1-0

[Event "CCT Chessable Masters D-II 2024"]
[Site "Online"]
[Date "2024.02.02"]
[Round "1"]
[White "AnishGiri"]
[Black "jefferyx"]
[Result "1/2-1/2"]
[ECO "D85"]
[WhiteElo "2739"]
[BlackElo "2688"]
[Annotator "TA"]
[PlyCount "60"]
[EventDate "2024.01.12"]
[EventType "k.o."]
[EventCountry "NET"]
[SourceTitle "playchess.com"]
[Source "ChessBase"]
[SourceQuality "1"]
[TimeControl "600+2"]

{[%evp 9,60,14,24,11,15,8,24,34,7,-1,21,6,0,-1,-8,0,-1,-26,-2,-37,-25,-58,-52,-54,-56,-60,-22,-20,-21,-14,0,0,0,0,0,0,0,-9,-5,-16,0,0,0,0,0,0,0,0,0,0,0,0,0]} 1. d4 {[%emt 0:00:04]} Nf6 {[%emt 0:00:04]} 2. c4 {[%emt 0:00:01]} g6 {[%emt 0:00:01]} 3. Nc3 {[%emt 0:00:03]} d5 {[%emt 0:00:02]} 4. cxd5 {[%emt 0:00:09]} Nxd5 {[%emt 0:00:00]} 5. Bd2 {[%emt 0:00:02]} Nb6 {[%emt 0:00:32][%cal Ob8c6]} 6. e3 {[%emt 0:00:22]} Bg7 {[%emt 0:00:01]} 7. f4 {[%emt 0:00:18]} O-O {[%emt 0:02:02][%cal Oc7c5]} 8. Nf3 {[%emt 0:00:03] White has an edge.} c5 {[%emt 0:00:33]} 9. dxc5 {[%emt 0:00:01]} Nd5 {[%emt 0:00:00]} 10. Qb3 {[%emt 0:00:56]} Bxc3 {[%emt 0:00:14]} 11. bxc3 {[%emt 0:00:18]} Nf6 {[%emt 0:00:30]} 12. Rd1 {[%emt 0:01:30]} Qc7 {[%emt 0:00:12][%cal Ob8d7]} 13. Bc4 {[%emt 0:00:44]} Na6 {[%emt 0:02:38][%cal Bb8a6,Ba6c5,Bc5b3,Bb3d2][%mdl 32]} 14. c6 {[%emt 0:00:59]} Qxc6 {[%emt 0:00:45]} 15. O-O {[%emt 0:00:10]} Nc5 {[%emt 0:00:01]} 16. Ne5 {[%emt 0:00:27]} Nxb3 {[%emt 0:00:20] A dynamic duo of knights.} 17. Nxc6 {[%emt 0:00:02]} Nxd2 {[%emt 0:00:00]} 18. Nxe7+ {[%emt 0:00:00] The position is equal.} Kg7 {[%emt 0:00:01]} 19. Rxd2 {[%emt 0:00:01]} Re8 {[%emt 0:00:00]} 20. Nd5 {[%emt 0:00:08]} Nxd5 {[%emt 0:00:10]} 21. Bxd5 {[%emt 0:00:31]} Rxe3 {[%emt 0:00:01]} 22. c4 {[%emt 0:00:02]} Re7 {[%emt 0:00:17]} 23. Kf2 {[%emt 0:00:36]} Be6 {[%emt 0:00:22]} 24. Re1 {[%emt 0:00:32]} Kf6 {[%emt 0:00:02]} 25. Bxe6 {[%emt 0:00:14]} Rxe6 {[%emt 0:00:03]} 26. Rd7 {[%emt 0:00:02]} Rxe1 {[%emt 0:00:04]} 27. Kxe1 $11 {[%emt 0:00:01] KR-KR} Rc8 {[%emt 0:00:01]} 28. Rxb7 {[%emt 0:00:05]} Rxc4 {[%emt 0:00:01]} 29. Rxa7 {[%emt 0:00:01]} Rxf4 {[%emt 0:00:01]} 30. Ke2 {[%emt 0:00:05]} Rb4 {[%emt 0:00:02] Weighted Error Value: White=0.08 (flawless) /Black=0.07 (flawless) .  Inaccurate:     	White=2     	Black=1      OK:         	White=10    	Black=9      Best:        	White=3     	Black=3} 1/2-1/2

[Event "CCT Chessable Masters D-II 2024"]
[Site "Online"]
[Date "2024.02.02"]
[Round "1"]
[White "LevonAronian"]
[Black "tptagain"]
[Result "1-0"]
[ECO "B12"]
[WhiteElo "2732"]
[BlackElo "2671"]
[Annotator "TA"]
[PlyCount "83"]
[EventDate "2024.01.12"]
[EventType "k.o."]
[EventCountry "NET"]
[SourceTitle "playchess.com"]
[Source "ChessBase"]
[SourceQuality "1"]
[TimeControl "600+2"]

{[%evp 9,83,0,0,-1,0,-5,0,0,2,0,0,0,0,4,22,20,19,20,20,12,32,26,30,23,22,17,25,20,29,29,26,25,18,16,16,19,40,27,127,128,175,189,183,136,160,106,81,34,162,104,197,193,143,170,146,100,101,99,129,132,153,153,197,127,120,120,153,92,110,49,34,0,91,102,833,833]} 1. e4 {[%emt 0:00:02]} c6 {[%emt 0:00:04]} 2. d4 {[%emt 0:00:02]} d5 {[%emt 0:00:01]} 3. e5 {[%emt 0:00:00]} Bf5 {[%emt 0:00:01]} 4. h4 {[%emt 0:00:01]} h6 {[%emt 0:00:03]} 5. Bd3 {[%emt 0:00:05]} Bxd3 {[%emt 0:00:03]} 6. cxd3 {[%emt 0:00:01][%cal Oe5e6]} e6 {[%emt 0:00:09]} 7. Nc3 {[%emt 0:00:02]} Nd7 {[%emt 0:00:34]} 8. Nf3 {[%emt 0:00:10] The position is equal.} a6 {[%emt 0:00:39]} 9. h5 {[%emt 0:00:08]} c5 {[%emt 0:00:07]} 10. dxc5 {[%emt 0:00:05]} Bxc5 {[%emt 0:00:01]} 11. d4 {[%emt 0:00:04]} Bb6 {[%emt 0:00:09]} 12. Kf1 {[%emt 0:00:34]} Ne7 {[%emt 0:00:22]} 13. g4 {[%emt 0:00:03]} Qc7 {[%emt 0:00:29]} 14. Bf4 {[%emt 0:00:18]} Qc4+ {[%emt 0:01:02]} 15. Kg2 {[%emt 0:00:04]} Nc6 {[%emt 0:00:03][%cal Rc6d4]} 16. Rc1 {[%emt 0:00:20][%cal Oc3e4] Hoping for Ne4!} Qb4 $1 {[%emt 0:00:05]} 17. Na4 {[%emt 0:00:03]} Ba7 {[%emt 0:00:46]} (17... Bxd4 $2 {is the wrong capture.} 18. a3 (18. Rxc6 $2 Ba7 $19) 18... Qe7 19. Nxd4 $18) 18. a3 $36 {[%emt 0:00:03][%mdl 2048] White is more active.} Qe7 {[%emt 0:00:31]} 19. Qd3 {[%emt 0:00:53]} Nb6 {[%emt 0:00:59]} 20. Nxb6 {[%emt 0:00:44]} Bxb6 {[%emt 0:00:00]} 21. Rc3 {[%emt 0:00:03]} Rc8 {[%emt 0:00:18]} 22. Rhc1 {[%emt 0:00:10]} Rc7 {[%emt 0:00:05]} 23. b4 {[%emt 0:00:09]} (23. Bd2 {simplifies} Rc8 24. b4 Bd8 25. Rb1) 23... Kd7 {[%emt 0:00:12]} (23... Qd7 $11) 24. b5 $16 {[%emt 0:00:48]} axb5 {[%emt 0:00:02]} 25. Qxb5 {[%emt 0:00:00]} Ba7 {[%emt 0:00:01]} 26. a4 {[%emt 0:00:15]} (26. Bd2 $18) 26... Rhc8 {[%emt 0:00:15]} 27. R1c2 {[%emt 0:00:08]} (27. Bd2 $142) 27... Kd8 {[%emt 0:00:13]} 28. Be3 {[%emt 0:00:24]} (28. Qb2 $1 $16) 28... Qd7 {[%emt 0:01:15]} (28... Nb4 $14 29. Rxc7 Rxc7) 29. Qb1 {[%emt 0:00:42]} (29. g5 $1 $18 {[%cal Rg5h6]}) 29... Qe7 {[%emt 0:00:12]} (29... f5 $16 {was called for.}) 30. Rb2 $18 {[%emt 0:01:24]} Na5 {[%emt 0:00:19]} (30... f6 $18 31. exf6 Qf7 32. fxg7 Qxg7) 31. Rxc7 $16 {[%emt 0:00:02]} Rxc7 {[%emt 0:00:01] [#]} 32. Bd2 {[%emt 0:00:18]} (32. g5 $142 $1 {Threatens to win with Qh7.} Nc4 33. gxh6 Nxe3+ 34. fxe3 gxh6 35. Kh3) 32... Nc6 {[%emt 0:00:14]} 33. Qd3 {[%emt 0:00:33]} Kc8 {[%emt 0:01:11][%cal Of7f5,Bd8c8,Bc8b8,Bb8a8][%mdl 32]} 34. a5 {[%emt 0:00:07]} Kb8 {[%emt 0:00:12]} 35. a6 {[%emt 0:00:12]} Ka8 {[%emt 0:00:06]} 36. Be3 {[%emt 0:00:12]} ({Better is} 36. axb7+ $18 Rxb7 37. Rc2) 36... bxa6 {[%emt 0:00:08]} 37. Qxa6 {[%emt 0:00:06]} Qd7 {[%emt 0:00:01]} 38. Ne1 {[%emt 0:00:17] White has more active pieces.} (38. Rb3 $142) 38... Rb7 {[%emt 0:00:05]} 39. Rxb7 {[%emt 0:00:07]} (39. Rd2 $16) 39... Qxb7 $14 {[%emt 0:00:01]} 40. Qd3 {[%emt 0:00:01] Qh7 would now be deadly.} Qb2 {[%emt 0:00:06] [#]} (40... Nxe5 $11 {keeps the balance.} 41. dxe5 d4+ 42. Nf3 dxe3) 41. Nf3 $1 $16 {[%emt 0:00:06] Qh7 is the strong threat.} Nb4 $2 {[%emt 0:00:08][%mdl 8192]} (41... Qb4 $16) 42. Qb5 {[%emt 0:00:07] Weighted Error Value: White=0.19 (very precise) /Black=0.24 (precise) .  Loses game:     	---       	Black=1      Mistake:       	White=8     	Black=5      Inaccurate:     	White=1     	Black=1      OK:         	White=18    	Black=12     Best:        	White=1     	Black=1      Strong:       	White=1     	Black=1} 1-0